[Event "MARCEL 1st Div Ch-League 2019"]
[Site "Dhaka"]
[Date "2019.11.20"]
[Round "9.5"]
[White "Sibu, Podder"]
[Black "Utsab Chatterjee"]
[Result "0-1"]
[ECO "E14"]
[WhiteElo "1808"]
[BlackElo "2225"]
[Annotator "ChessBase"]
[PlyCount "106"]
[EventDate "2019.11.12"]
[EventCountry "BAN"]
[SourceTitle "playchess.com"]
[Source "ChessBase"]
[SourceQuality "1"]
[TimeControl "5400+30"]

1. d4 {[%emt 0:00:00]} d5 {[%emt 0:00:04]} 2. c4 {[%emt 0:00:00]} e6 {[%emt 0:00:23]} 3. Nc3 {[%emt 0:00:26]} Nf6 {[%emt 0:00:09]} 4. e3 {[%emt 0:01:33]} Be7 {[%emt 1:31:24]} 5. Nf3 {[%emt 0:00:47]} O-O {[%emt 0:00:07]} 6. Bd3 {[%emt 0:00:17]} b6 {[%emt 0:00:04]} 7. O-O {[%emt 0:00:46]} Bb7 {[%emt 0:00:04]} 8. b3 {[%emt 0:00:53]} Nbd7 {[%emt 1:33:05]} 9. Bb2 {[%emt 1:29:48]} c5 {[%emt 0:00:07]} 10. Qe2 {[%emt 0:01:09]} Rc8 {[%emt 0:04:29]} 11. Rfd1 {[%emt 0:00:37]} Qc7 {[%emt 0:01:17]} 12. Rac1 {[%emt 0:01:25]} Qb8 {[%emt 0:04:13]} 13. cxd5 {[%emt 1:28:23]} exd5 {[%emt 0:00:14]} 14. h3 {[%emt 0:01:25]} Ne4 {[%emt 0:02:16]} 15. dxc5 {[%emt 0:05:59]} Ndxc5 {[%emt 0:00:08]} 16. Bb1 {[%emt 0:05:25]} Rfd8 {[%emt 0:00:51]} 17. b4 {[%emt 0:09:13]} Ne6 {[%emt 0:02:57]} 18. a3 {[%emt 0:01:19]} a5 {[%emt 0:04:28]} 19. Nxe4 {[%emt 0:14:00]} dxe4 {[%emt 0:00:17]} 20. Rxd8+ {[%emt 0:02:01]} Rxd8 {[%emt 0:00:05]} 21. Nd2 {[%emt 0:00:40]} axb4 {[%emt 0:00:22]} 22. axb4 {[%emt 0:01:51]} Bxb4 {[%emt 0:03:02]} 23. Nf1 {[%emt 0:44:57]} Qa8 {[%emt 0:01:25]} 24. Bc2 {[%emt 0:02:47]} Qa2 {[%emt 0:01:09]} 25. Bb1 {[%emt 0:01:44]} Qb3 {[%emt 0:01:00]} 26. Be5 {[%emt 0:00:26]} Qd5 {[%emt 0:07:53]} 27. Qb2 {[%emt 0:34:01]} Qa5 {[%emt 0:00:16]} 28. Qa1 {[%emt 0:03:44]} Qxa1 {[%emt 0:03:11]} 29. Bxa1 {[%emt 0:00:12]} Nc5 {[%emt 0:00:08]} 30. Ba2 {[%emt 0:01:15]} Ba3 {[%emt 0:02:37]} 31. Rb1 {[%emt 0:02:51]} Rd6 {[%emt 0:07:18]} 32. Be5 {[%emt 0:01:08]} Rg6 {[%emt 0:00:09]} 33. Bc7 {[%emt 0:08:11]} Nd7 {[%emt 0:00:16]} 34. Rd1 {[%emt 0:01:34]} Nf8 {[%emt 0:00:57]} 35. Rb1 {[%emt 0:01:39]} Bc5 {[%emt 0:00:07]} 36. Nd2 {[%emt 0:02:21]} Rc6 {[%emt 0:01:15]} 37. Bf4 {[%emt 0:01:14]} Rc8 {[%emt 0:00:14]} 38. Nc4 {[%emt 0:01:34]} Ra8 {[%emt 0:00:57]} 39. Rb2 {[%emt 0:01:02]} Bd5 {[%emt 0:00:28]} 40. Bb3 {[%emt 0:01:49]} Nd7 {[%emt 0:01:31]} 41. Kf1 {[%emt 0:03:30]} Ra1+ {[%emt 0:03:03]} 42. Ke2 {[%emt 0:06:33]} Bb7 {[%emt 0:02:05]} 43. Nd2 {[%emt 0:01:09]} Ba3 {[%emt 0:00:46]} 44. Ra2 {[%emt 0:01:52]} Rxa2 {[%emt 0:01:13]} 45. Bxa2 {[%emt 0:00:03]} b5 {[%emt 0:00:09]} 46. Nb1 {[%emt 0:01:41]} Bc5 {[%emt 0:01:18]} 47. Bc7 {[%emt 0:01:02]} Nb6 {[%emt 0:01:26]} 48. Nd2 {[%emt 0:00:57]} Na4 {[%emt 0:00:21]} 49. Be5 {[%emt 0:00:45]} Kf8 {[%emt 0:00:49]} 50. Kd1 {[%emt 0:00:48]} f6 {[%emt 0:00:08]} 51. Ba1 {[%emt 0:00:12]} Bb4 {[%emt 0:00:05]} 52. Kc2 {[%emt 0:00:42]} Nc5 {[%emt 0:00:06]} 53. f3 {[%emt 0:01:36]} Bxd2 {[%emt 0:00:17]} 0-1

[Event "MARCEL 1st Div Ch-League 2019"]
[Site "Dhaka"]
[Date "2019.11.20"]
[Round "9.6"]
[White "Bhuiyan, Golam Mostafa"]
[Black "Nurul, Islam"]
[Result "1/2-1/2"]
[ECO "D78"]
[WhiteElo "2060"]
[BlackElo "1989"]
[Annotator "NA"]
[PlyCount "139"]
[EventDate "2019.11.12"]
[EventCountry "BAN"]
[SourceTitle "playchess.com"]
[Source "ChessBase"]
[SourceQuality "1"]
[TimeControl "5400+30"]

{[%evp 8,114,22,-5,8,-10,18,-30,31,24,4,4,24,35,43,3,57,-21,0,-3,32767,32767,32767,0,32767,33,37,32767,54,14,79,90,102,38,35,32767,32767,32767,-8,32767,-73,0,233,32767,32767,37,27,0,62,0,54,32767,11,32767,32767,-90,-129,-118,-103,-139,42,32767,32767,32767,0,-40,32767,32767,32767,32767,32767,32767,104,38,32767,0,0,32767,5,32767,0,8,32767,32767,32767,32767,32767,41,75,32767,71,62,69,58,124,83,143,156,292,217,257,291,302,248,270,166,166,97,94]} 1. d4 {[%emt 0:00:00]} Nf6 {[%emt 1:30:30]} 2. c4 {[%emt 0:00:00]} c6 {[%emt 0:00:49]} 3. Nc3 {[%emt 0:00:00]} d5 {[%emt 0:01:01]} 4. g3 {[%emt 0:00:10]} g6 {[%emt 0:00:17]} 5. Bg2 {[%emt 0:00:01]} Bg7 {[%emt 0:00:08]} 6. Nf3 {[%emt 0:00:04]} O-O {[%emt 0:00:22]} 7. O-O {[%emt 0:00:07]} Ne4 {[%emt 0:10:04]} ({Black should play} 7... dxc4 $11 8. e4 b5) 8. Qc2 {[%emt 0:09:30] D78: Fianchetto Grünfeld: 6 0-0 c6} Nxc3 {[%emt 0:01:48]} 9. bxc3 $146 {[%emt 0:00:31]} ({Predecessor:} 9. Qxc3 Nd7 10. cxd5 cxd5 11. Bf4 Nf6 12. Rfc1 Qb6 13. Qb3 Qxb3 14. axb3 Ne4 15. Rc7 Bf6 16. Be5 a6 17. Bxf6 exf6 18. Ne1 Rb8 19. Nd3 g5 20. Rac1 Re8 21. Bxe4 dxe4 22. Nc5 {1-0 (67) Alonso Rosell,A (2502)-Alonso Moyano,J (2426) Sabadell 2011}) 9... Nd7 {[%emt 0:03:16]} 10. a4 {[%emt 0:01:29]} Nb6 {[%emt 0:05:45]} 11. Nd2 {[%emt 0:01:30]} (11. cxd5 $14 cxd5 12. a5) 11... e5 {[%emt 0:02:11]} 12. c5 {[%emt 0:05:29]} ({Better is} 12. Ba3 $14) 12... Nd7 {[%emt 0:00:12]} 13. e3 {[%emt 0:00:53]} Re8 {[%emt 0:00:32]} 14. a5 {[%emt 0:00:04]} a6 {[%emt 0:00:16]} 15. Bb2 {[%emt 0:01:38]} Qe7 {[%emt 0:00:24]} 16. c4 {[%emt 0:00:13]} e4 {[%emt 0:05:39]} 17. Ba3 {[%emt 0:06:07]} Qe6 {[%emt 0:06:20]} 18. Nb1 {[%emt 0:01:29]} h5 {[%emt 0:00:32]} 19. Nc3 {[%emt 0:00:12]} h4 {[%emt 0:04:12]} 20. Rfe1 {[%emt 0:04:52]} ({White should try} 20. cxd5 $16 cxd5 21. gxh4) 20... hxg3 {[%emt 0:02:15]} 21. hxg3 {[%emt 0:01:01]} Nf6 {[%emt 0:00:52]} 22. Rab1 {[%emt 0:00:15]} Qf5 {[%emt 0:03:11]} 23. cxd5 {[%emt 0:00:14]} cxd5 {[%emt 0:00:31]} 24. Rb6 {[%emt 0:00:20]} Bf8 $2 {[%emt 0:00:29]} (24... Ng4 $15 {stays ahead.}) 25. Reb1 {[%emt 0:05:18]} Kg7 {[%emt 0:03:19]} 26. Qa2 {[%emt 0:01:31]} Rd8 {[%emt 0:48:23]} 27. Rf1 {[%emt 0:07:35]} Qg5 {[%emt 0:43:19]} (27... Ng4 $11) 28. Rfb1 {[%emt 0:08:41]} Nh5 {[%emt 0:02:44]} 29. Ne2 {[%emt 0:13:41]} Be7 {[%emt 0:11:58]} 30. Qd2 {[%emt 0:17:25]} Rh8 {[%emt 0:04:05]} 31. c6 {[%emt 0:05:17] [#]} bxc6 $1 {[%emt 0:05:22]} 32. Bxe7 {[%emt 0:00:13]} Qxe7 {[%emt 0:00:13]} 33. Rxc6 {[%emt 0:00:02]} Qa3 $2 {[%emt 0:07:24]} (33... Bg4 $19 34. Rbb6 Bf3) 34. Rc5 {[%emt 0:01:08]} Be6 {[%emt 0:00:21]} 35. Nc3 {[%emt 0:10:30]} Nf6 {[%emt 0:01:43]} 36. Qd1 {[%emt 0:01:27]} Rhb8 {[%emt 0:01:39]} 37. Ra1 {[%emt 0:00:08]} Qb3 {[%emt 0:02:00]} 38. Qc1 {[%emt 0:00:19]} Qb7 {[%emt 0:01:23]} 39. Na4 {[%emt 0:09:58]} Nd7 {[%emt 0:01:39]} (39... Ra7 $11 {remains equal.}) 40. Rc7 {[%emt 0:00:00]} Qb4 {[%emt 0:00:17]} 41. Nc5 {[%emt 0:01:00]} Nxc5 {[%emt 0:08:07]} 42. Qxc5 {[%emt 0:00:00]} Qxc5 {[%emt 0:01:21]} 43. Rxc5 {[%emt 0:00:00]} Rb5 {[%emt 0:01:09]} 44. Bf1 {[%emt 0:00:00]} Rxc5 {[%emt 0:00:41]} 45. dxc5 {[%emt 0:00:00]} Kf6 {[%emt 0:00:48]} 46. Rb1 {[%emt 0:00:00]} Rc8 {[%emt 0:06:14]} 47. Bxa6 {[%emt 0:00:00]} Rxc5 {[%emt 0:00:07]} 48. Ra1 {[%emt 0:00:00]} Rc7 {[%emt 0:00:35]} 49. Bb5 {[%emt 0:00:00]} Ra7 {[%emt 0:00:08]} 50. a6 {[%emt 0:00:00]} Bc8 {[%emt 0:00:04]} (50... Ke5 $14) 51. Rc1 {[%emt 0:00:00]} Ra8 {[%emt 0:00:25] [#]} (51... Bh3 $142) 52. Rc7 $1 {[%emt 0:06:30]} Bxa6 {[%emt 0:02:38]} (52... Ke5 $16 {is a better defense.}) 53. Rc6+ {[%emt 0:00:00] Double Attack} Ke5 {[%emt 0:00:09]} 54. Rxa6 {[%emt 0:00:29]} Rb8 {[%emt 0:00:12]} 55. Ra5 {[%emt 0:00:08]} Rc8 {[%emt 0:00:15]} 56. Kg2 {[%emt 0:00:01]} (56. Ra7 $142) 56... Rc5 {[%emt 0:00:12]} 57. g4 {[%emt 0:00:54]} f5 $16 {[%emt 0:00:06]} 58. Kg3 {[%emt 0:01:01]} d4 {[%emt 0:00:59]} 59. exd4+ {[%emt 0:00:12]} Kxd4 {[%emt 0:00:02]} 60. Ra4+ {[%emt 0:00:21]} Ke5 {[%emt 0:07:09]} 61. Be8 {[%emt 0:01:43]} f4+ {[%emt 0:01:06]} 62. Kh4 {[%emt 0:00:19]} g5+ {[%emt 0:03:21]} 63. Kxg5 {[%emt 0:00:34]} e3 {[%emt 0:00:05]} 64. fxe3 {[%emt 0:00:38]} fxe3 {[%emt 0:00:03]} 65. Bg6 {[%emt 0:00:38]} e2 {[%emt 0:01:43]} 66. Re4+ {[%emt 0:00:00]} Kd6+ {[%emt 0:00:03]} 67. Kf6 {[%emt 0:00:00]} Rc4 {[%emt 0:00:32]} 68. Re6+ {[%emt 0:00:00]} Kd5 {[%emt 0:00:16]} 69. Rxe2 {[%emt 0:00:00]} Rxg4 {[%emt 0:00:05]} 70. Re6 {[%emt 0:02:30]} 1/2-1/2

[Event "MARCEL 1st Div Ch-League 2019"]
[Site "Dhaka"]
[Date "2019.11.20"]
[Round "9.7"]
[White "Bappi, A.b."]
[Black "Islam, Mohammad Aminul"]
[Result "1-0"]
[ECO "E90"]
[WhiteElo "1827"]
[BlackElo "2078"]
[Annotator "NA"]
[PlyCount "36"]
[EventDate "2019.11.12"]
[EventCountry "BAN"]
[SourceTitle "playchess.com"]
[Source "ChessBase"]
[SourceQuality "1"]
[TimeControl "5400+30"]

{[%evp 8,36,52,34,42,32767,32767,1,32767,32767,41,26,29,21,29,22,45,33,64,35,51,7,44,31,32767,32767,32767,32767,32767,32767,63]} 1. c4 {[%emt 0:00:00]} Nf6 {[%emt 0:00:00]} 2. d4 {[%emt 0:00:03]} g6 {[%emt 0:00:19]} 3. Nc3 {[%emt 0:00:15]} Bg7 {[%emt 0:00:10]} 4. e4 {[%emt 0:00:36]} d6 {[%emt 0:00:06]} 5. h3 {[%emt 0:00:07]} Na6 {[%emt 1:31:55]} 6. Nf3 {[%emt 0:00:54]} O-O {[%emt 0:00:00]} 7. a3 {[%emt 0:00:38]} c5 {[%emt 0:01:00]} 8. d5 {[%emt 0:06:18]} Nc7 {[%emt 0:00:00]} 9. Be2 {[%emt 0:02:18]} e6 {[%emt 0:00:00]} 10. Bg5 {[%emt 0:01:46]} exd5 {[%emt 0:00:00]} 11. exd5 {[%emt 0:00:21]} Re8 {[%emt 0:00:00]} 12. O-O {[%emt 0:00:13]} Rb8 {[%emt 0:00:00]} 13. Re1 {[%emt 0:00:38]} h6 {[%emt 0:00:00]} 14. Bh4 {[%emt 0:00:26]} Bd7 {[%emt 0:00:00]} 15. Nd2 {[%emt 0:03:16]} g5 {[%emt 0:00:00]} 16. Bg3 {[%emt 0:00:06]} Bf5 {[%emt 0:04:30]} 17. Rc1 {[%emt 0:03:26]} a6 {[%emt 0:00:00]} 18. b4 {[%emt 0:05:20]} b6 $14 {[%emt 0:00:00]} 1-0

[Event "MARCEL 1st Div Ch-League 2019"]
[Site "Dhaka"]
[Date "2019.11.20"]
[Round "9.8"]
[White "Avik, Sarker"]
[Black "Khondakar, Nazre Mowla"]
[Result "1-0"]
[ECO "D02"]
[WhiteElo "1980"]
[BlackElo "1864"]
[Annotator "NA"]
[PlyCount "75"]
[EventDate "2019.11.12"]
[EventCountry "BAN"]
[SourceTitle "playchess.com"]
[Source "ChessBase"]
[SourceQuality "1"]
[TimeControl "5400+30"]

{[%evp 12,75,-13,32767,32767,32767,-6,0,-3,-12,-16,-25,13,32767,-22,32767,32767,32767,-61,-51,-43,-53,32767,32767,-25,-63,-40,-109,32767,-42,-46,-50,32767,-70,0,-49,32767,-43,-20,-14,-10,32767,-36,-58,-37,-50,14,3,16,12,14,32767,32767,32767,32767,32767,32767,33,32767,23,20,0,138,148,200,135]} 1. d4 {[%emt 0:00:00]} d5 {[%emt 0:00:00]} 2. Bf4 {[%emt 0:00:00]} e6 {[%emt 0:00:25]} 3. e3 {[%emt 0:00:00]} Bd6 {[%emt 0:01:04]} 4. Bg3 {[%emt 0:00:00]} Nf6 {[%emt 0:05:14]} 5. Bd3 {[%emt 0:00:00]} c5 {[%emt 0:01:04]} 6. c3 {[%emt 1:33:00]} Nc6 {[%emt 0:02:56]} 7. Nf3 {[%emt 0:00:00]} O-O {[%emt 0:04:04]} 8. Nbd2 {[%emt 0:01:00]} b6 {[%emt 0:16:09]} 9. Ne5 {[%emt 0:00:00]} Bb7 {[%emt 0:00:20]} 10. f4 {[%emt 0:00:00] D02: 1 d4 d5 2 Nf3 sidelines, including 2...Nf6 3 g3 and 2...Nf6 3 Bf4} (10. O-O Qc7 11. f4 Ne7 12. Qb1 Qc8 13. Bh4 Nf5 14. Bxf5 exf5 15. Bxf6 gxf6 16. Nef3 Qe6 17. Re1 Ba6 18. Nh4 cxd4 19. exd4 {1-0 (28) Korobov,A (2692)-Dominguez Perez,L (2739) Doha 2016}) 10... Ne7 {[%emt 0:07:22]} 11. Qf3 {[%emt 0:00:00]} Nd7 {[%emt 0:05:27]} 12. Nxd7 $146 {[%emt 0:00:00]} ({Predecessor:} 12. Bf2 f5 13. g4 Nf6 14. gxf5 exf5 15. Rg1 Bxe5 16. fxe5 Ne4 17. Qg2 Ng6 {1-0 (33) Kosic,D (2488)-Mijovic,S (2325) Cetinje 2009}) 12... Qxd7 {[%emt 0:00:20]} 13. Qh5 {[%emt 0:00:00]} g6 {[%emt 0:03:52]} 14. Qh3 {[%emt 0:00:00]} cxd4 {[%emt 0:03:09]} 15. exd4 {[%emt 0:03:30]} Nf5 {[%emt 0:46:04]} 16. Nf3 {[%emt 0:00:30]} f6 {[%emt 0:00:30]} 17. O-O {[%emt 0:00:00]} Rae8 {[%emt 0:00:00]} 18. Rae1 {[%emt 0:01:00]} Bc6 {[%emt 0:01:00]} 19. Re2 {[%emt 0:00:00]} (19. Qg4 $15) 19... Bb5 {[%emt 0:00:00]} 20. Bxb5 Qxb5 21. Rfe1 {[%emt 0:00:00]} Qd7 {[%emt 0:01:30]} 22. Nh4 {[%emt 0:02:00]} Re7 {[%emt 0:02:00]} ({Black should play} 22... b5 $15) 23. Qg4 {[%emt 0:00:30]} Rfe8 {[%emt 0:00:30]} 24. Qf3 {[%emt 0:00:00]} Nxg3 {[%emt 0:00:00]} 25. hxg3 {[%emt 0:00:00]} Bc7 {[%emt 0:01:00]} 26. Qe3 {[%emt 0:00:00]} e5 {[%emt 0:01:30]} 27. dxe5 {[%emt 0:00:00]} fxe5 {[%emt 0:02:00]} 28. Nf3 $1 {[%emt 0:00:00]} Bd6 {[%emt 0:00:02]} (28... e4 $5 {[%cal Re4f3]} 29. Nd4 Rf7 $15) 29. fxe5 {[%emt 0:03:00]} Bc5 {[%emt 0:01:06]} 30. Nd4 Rxe5 {[%emt 0:00:17]} 31. Qxe5 Rxe5 32. Rxe5 {[%emt 0:01:30]} Bxd4+ {[%emt 0:03:07]} 33. cxd4 {[%emt 0:02:00]} Kf7 {[%emt 0:03:08]} 34. Rc1 {[%emt 0:02:30]} h5 {[%emt 0:03:38]} 35. Kh2 {[%emt 0:00:00]} Kg7 {[%emt 0:00:00]} 36. b3 {[%emt 0:01:00]} Qb5 {[%emt 0:01:00]} (36... Qg4 $11 {remains equal.}) 37. Rc7+ {[%emt 0:01:30] Double Attack} Kh6 {[%emt 0:00:45]} 38. Rxa7 $16 {[%emt 0:02:00]} 1-0

[Event "MARCEL 1st Div Ch-League 2019"]
[Site "Dhaka"]
[Date "2019.11.20"]
[Round "9.9"]
[White "Imam, Farhadur"]
[Black "Mukitul, Islam Ripon"]
[Result "0-1"]
[ECO "B62"]
[WhiteElo "2033"]
[BlackElo "1880"]
[Annotator "NA"]
[PlyCount "42"]
[EventDate "2019.11.12"]
[EventCountry "BAN"]
[SourceTitle "playchess.com"]
[Source "ChessBase"]
[SourceQuality "1"]
[TimeControl "5400+30"]

{[%evp 8,38,35,29,31,27,25,23,14,0,16,-8,8,-52,0,-67,-64,-59,-52,-80,32767,-86,-85,-84,-83,-81,32767,-81,32767,32767,-295,-341,-356]} 1. e4 {[%emt 0:00:00]} c5 {[%emt 0:00:00]} 2. Nf3 {[%emt 0:00:00]} Nc6 {[%emt 0:00:00]} 3. d4 {[%emt 0:00:00]} cxd4 {[%emt 0:00:06]} 4. Nxd4 {[%emt 0:00:03]} Nf6 {[%emt 0:00:34]} 5. Nc3 {[%emt 0:00:25]} d6 {[%emt 0:00:31]} 6. Bg5 {[%emt 0:00:18]} e6 {[%emt 0:00:28]} 7. Bb5 {[%emt 0:00:33]} Bd7 {[%emt 0:00:45]} 8. O-O {[%emt 0:06:10]} Be7 {[%emt 0:00:09]} 9. Qd2 {[%emt 1:27:01] B62: Sicilian: Richter-Rauzer: 6...e6: Unusual White 7th moves} (9. Nxc6 bxc6 10. Ba4 Qb8 11. b3 h6 12. Bc1 O-O 13. Qf3 e5 14. Ne2 d5 15. Ng3 Bg4 16. Qe3 Qc7 {0-1 (30) Kalogeris,I (2350)-Pavlidis,A (2559) Chania 2019}) 9... a6 {[%emt 0:06:57]} 10. Ba4 {[%emt 0:01:09]} ({White should try} 10. Bxc6 $11 Bxc6 11. Rfd1 (11. Nxc6 bxc6 12. Rad1 d5 $11)) 10... O-O {[%emt 1:25:30]} 11. Rad1 {[%emt 0:03:41]} ({Better is} 11. Bxc6 $11 Bxc6 12. Rfd1 (12. Nxc6 bxc6 13. Rab1 d5 $11)) 11... b5 {[%emt 0:04:10]} 12. Bb3 {[%emt 0:00:33]} b4 {[%emt 0:07:01]} 13. Bxf6 {[%emt 0:01:29]} Bxf6 {[%emt 0:01:58]} 14. Nce2 {[%emt 0:08:02]} Nxd4 {[%emt 0:10:21]} 15. Nxd4 {[%emt 0:07:44]} Qb6 {[%emt 0:00:59]} 16. c4 {[%emt 0:06:20]} bxc3 {[%emt 0:03:52]} 17. bxc3 $146 {[%emt 0:02:00]} ({Predecessor:} 17. Qxc3) 17... Rfd8 {[%emt 0:00:41]} 18. f4 {[%emt 0:57:34]} e5 {[%emt 0:01:06] Pin} 19. fxe5 {[%emt 0:00:00]} dxe5 $19 {[%emt 0:00:15] Pin} 20. Qf2 {[%emt 0:00:00]} exd4 {[%emt 0:00:26]} 21. cxd4 {[%emt 0:00:00]} Bb5 {[%emt 0:00:36]} 0-1

[Event "MARCEL 1st Div Ch-League 2019"]
[Site "Dhaka"]
[Date "2019.11.20"]
[Round "9.10"]
[White "Khan, Md. Monir Hossain"]
[Black "Sambarta Banerjee"]
[Result "1/2-1/2"]
[ECO "A49"]
[WhiteElo "1993"]
[BlackElo "1957"]
[Annotator "NA"]
[PlyCount "50"]
[EventDate "2019.11.12"]
[EventCountry "BAN"]
[SourceTitle "playchess.com"]
[Source "ChessBase"]
[SourceQuality "1"]
[TimeControl "5400+30"]

{[%evp 8,50,7,1,30,32767,1,32767,-13,-23,32767,32767,-37,-40,-45,-56,-76,-77,-54,-89,-49,-65,-52,32767,-51,-58,32767,-51,32767,-37,-31,-39,-32,-32,32767,32767,32767,0,0,32767,32767,0,0,0,0]} 1. d4 {[%emt 0:01:06]} Nf6 {[%emt 0:00:00]} 2. g3 {[%emt 0:01:15]} g6 {[%emt 1:31:00]} 3. Bg2 {[%emt 0:00:02]} Bg7 {[%emt 0:00:00]} 4. Nf3 {[%emt 0:00:20]} O-O {[%emt 1:32:00]} 5. O-O {[%emt 0:00:02]} d6 {[%emt 0:00:03]} 6. Bg5 {[%emt 0:01:41]} Nbd7 {[%emt 0:01:12] A49: 1 d4 Nf6 2 Nf3 g6 3 g3: Anti-King's Indian systems} 7. Nbd2 {[%emt 1:29:04]} (7. c4 h6 8. Bxf6 Nxf6 9. Nc3 c6 10. e4 Qc7 11. Qc2 e5 12. Rad1 Bg4 13. d5 c5 14. h3 {½-½ (47) Mamedjarova,T (2295)-Muzychuk,A (2569) St Petersburg 2018}) 7... e5 {[%emt 0:02:40]} 8. dxe5 {[%emt 0:03:55]} dxe5 {[%emt 0:00:13]} 9. Ne4 $146 {[%emt 0:00:25]} ({Predecessor:} 9. e4 h6 10. Bxf6 Qxf6 11. c3 a5 12. Qc2 Nc5 13. Nc4 {½-½ (13) Wesolowski,T (2090)-Malecki,R (2165) Polanica Zdroj 2004}) 9... h6 {[%emt 0:02:54]} 10. Bxf6 {[%emt 0:03:03]} Nxf6 {[%emt 0:00:16]} 11. Nfd2 {[%emt 0:04:13]} Nxe4 {[%emt 0:05:12]} 12. Nxe4 {[%emt 0:00:21]} Qe7 {[%emt 0:00:37]} 13. c3 {[%emt 0:00:18]} Rd8 {[%emt 0:02:32]} 14. Qc2 {[%emt 0:04:21]} Be6 {[%emt 1:21:21]} 15. Rfd1 {[%emt 0:03:36]} c6 {[%emt 0:03:16]} 16. Nd2 {[%emt 0:05:34]} Rd7 {[%emt 0:04:23]} 17. Nb3 {[%emt 1:06:27]} Rad8 {[%emt 0:01:15]} 18. Rxd7 {[%emt 0:04:47]} Rxd7 {[%emt 0:00:36]} 19. Rd1 {[%emt 0:00:18]} Rxd1+ {[%emt 0:01:10]} 20. Qxd1 {[%emt 0:00:03]} Qd7 {[%emt 0:00:05]} 21. Qxd7 {[%emt 0:06:40]} Bxd7 {[%emt 0:00:02]} 22. Na5 {[%emt 0:02:46]} Bc8 {[%emt 0:00:00]} 23. Nc4 {[%emt 0:00:00]} Bd7 {[%emt 0:00:00]} 24. Na5 {[%emt 0:00:00]} Bc8 $11 {[%emt 0:00:00]} 25. Nc4 {[%emt 0:00:00]} Bd7 {[%emt 0:00:00]} 1/2-1/2

[Event "MARCEL 1st Div Ch-League 2019"]
[Site "Dhaka"]
[Date "2019.11.20"]
[Round "9.11"]
[White "Suvankar Maity"]
[Black "Hossain, Monir"]
[Result "0-1"]
[ECO "B23"]
[WhiteElo "1795"]
[BlackElo "2058"]
[Annotator "NA"]
[PlyCount "84"]
[EventDate "2019.11.12"]
[EventCountry "BAN"]
[SourceTitle "playchess.com"]
[Source "ChessBase"]
[SourceQuality "1"]
[TimeControl "5400+30"]

{[%evp 8,84,36,31,41,32767,32767,32767,50,32767,79,0,21,10,21,-29,-29,-26,-29,-8,-27,-63,-60,-92,-92,-141,-137,-141,-123,32767,32767,-133,-135,32767,-77,32767,32767,-83,-86,-98,-62,-106,-115,-95,-86,-104,32767,32767,-106,-222,-138,-154,-110,-111,-108,32767,-106,32767,32767,32767,32767,-166,-195,-161,-184,-172,-225,-226,-188,-198,-53,-159,-156,-783,-781,-718,-814,-29994,-29995]} 1. e4 {[%emt 1:30:30]} c5 {[%emt 1:30:30]} 2. Ne2 {[%emt 0:00:30]} Nc6 {[%emt 0:00:30]} 3. Nbc3 {[%emt 0:00:30]} e6 {[%emt 0:00:30]} 4. g3 {[%emt 0:00:30]} h5 {[%emt 0:00:30]} (4... Nf6 5. Bg2 Be7 6. O-O O-O 7. d3 d5 8. exd5 exd5 9. Re1 d4 10. Ne4 Nxe4 11. Bxe4 Bg4 12. f3 Bd7 13. Nf4 Bd6 14. Ng2 Qc7 15. Bf4 Rae8 16. Qd2 Ne5 17. Bxe5 Rxe5 {1-0 (64) Aronian,L (2767)-Caruana,F (2822) chess.com INT 2018}) 5. d4 {[%emt 0:00:30]} cxd4 {[%emt 0:00:30]} 6. Nxd4 {[%emt 0:00:30] B23: Closed Sicilian: Lines without g3} a6 $146 {[%emt 0:00:30]} ({Predecessor:} 6... h4 7. g4 h3 8. Be3 a6 9. Qd2 Ne5 10. Rg1 Qc7 11. f4 Nc4 12. Bxc4 Qxc4 {0-1 (29) Seeman,T (2475)-Kurajica,B (2570) Elista 1998}) 7. Be3 {[%emt 0:00:30]} Qc7 {[%emt 0:00:30]} 8. Bg2 {[%emt 0:00:30]} h4 {[%emt 0:00:30]} (8... Ne5 $11 {keeps the balance.}) 9. O-O {[%emt 0:00:30]} (9. f4 $16) 9... hxg3 {[%emt 0:00:30]} 10. hxg3 {[%emt 0:00:30]} Ne5 {[%emt 0:00:30]} 11. Bf4 {[%emt 0:00:30]} d6 {[%emt 0:00:30]} 12. Nf3 {[%emt 0:00:30]} Nf6 {[%emt 0:00:30]} 13. Qe2 {[%emt 0:00:30]} b5 {[%emt 0:00:30]} 14. Rae1 {[%emt 0:00:30]} b4 {[%emt 0:00:30]} 15. Nd1 {[%emt 0:00:30]} Bd7 {[%emt 0:00:30]} 16. Bxe5 {[%emt 0:00:30]} dxe5 {[%emt 0:00:30]} 17. c4 {[%emt 0:00:30]} Rc8 {[%emt 0:00:30]} 18. b3 {[%emt 0:00:30]} Bc6 {[%emt 0:00:30]} 19. Qc2 {[%emt 0:00:30]} Bc5 {[%emt 0:00:30]} 20. Nb2 {[%emt 0:00:30]} Ng4 {[%emt 0:00:30]} (20... Ba7 $142 21. Nd1 Kf8) 21. Nd3 {[%emt 0:00:30]} Be7 {[%emt 0:00:30]} 22. Re2 {[%emt 0:00:30]} a5 {[%emt 0:00:30]} 23. Rfe1 {[%emt 0:00:30]} f6 {[%emt 0:00:30]} 24. Nd2 {[%emt 0:00:30]} Rd8 {[%emt 0:00:30]} 25. Nf1 {[%emt 0:00:30]} Kf7 {[%emt 0:00:30]} 26. Bf3 {[%emt 0:00:30]} Nh6 {[%emt 0:00:30]} 27. Rd1 {[%emt 0:00:30] [#]} g6 $2 {[%emt 0:00:30]} (27... Nf5 $1 $19 {[%cal Rf5d4][%mdl 512] has better winning chances.} 28. Qd2 (28. exf5 Bxf3) 28... Nd4 {[%mdl 64] Double Attack}) 28. Red2 {[%emt 0:00:30]} (28. Bg2 $17 {was worth a try.}) 28... Kg7 {[%emt 0:00:30]} 29. Ne1 {[%emt 0:00:30]} Nf7 {[%emt 0:00:30]} 30. Rxd8 {[%emt 0:00:30]} Bxd8 {[%emt 0:00:30]} 31. Bg2 {[%emt 0:00:30]} Be7 {[%emt 0:00:30]} 32. Nf3 {[%emt 0:00:30]} Qb7 {[%emt 0:00:30]} 33. N1d2 {[%emt 0:00:30]} Bc5 {[%emt 0:00:30]} 34. Qd3 {[%emt 0:00:30]} Rd8 {[%emt 0:00:30]} 35. Qe2 {[%emt 0:00:30]} Qd7 {[%emt 0:00:30]} 36. Bf1 {[%emt 0:00:30]} Qd6 {[%emt 0:00:30]} 37. Ne1 {[%emt 0:00:30]} (37. Bh3 {is a better defense.}) 37... f5 {[%emt 0:00:30]} 38. Nd3 {[%emt 0:00:30]} Ng5 {[%emt 0:00:30]} (38... Ba7 $19 39. c5 Qd4) 39. exf5 {[%emt 0:00:30]} ({White must play} 39. Nxc5 $15 Qxc5 40. Bg2) 39... exf5 {[%emt 0:00:30]} 40. Nxe5 $2 {[%emt 0:00:30]} (40. Nxc5 $17 Qxc5 41. Bg2) 40... Re8 {[%emt 0:00:30]} 41. Ndf3 {[%emt 0:00:30]} Nxf3+ {[%emt 0:00:30] Pin} 42. Nxf3 {[%emt 0:00:30]} Qxg3+ {[%emt 0:00:30] Double Attack} 0-1